[Event "Eurasia Open Cup 2019"]
[Site "Ekaterinburg"]
[Date "2019.08.06"]
[Round "6.21"]
[White "Radzhabov, Rodion"]
[Black "Averyanov, Grigori"]
[Result "0-1"]
[ECO "B84"]
[WhiteElo "2404"]
[BlackElo "2131"]
[Annotator "NA"]
[PlyCount "164"]
[EventDate "2019.07.31"]
[EventType "swiss"]
[EventCountry "RUS"]
[SourceTitle "playchess.com"]
[Source "ChessBase"]
[SourceQuality "1"]
[TimeControl "5400+30"]

1. e4 {[%emt 0:03:03]} c5 {[%emt 0:00:00]} 2. Nc3 {[%emt 0:00:46]} e6 {[%emt 0:00:00]} 3. Nf3 {[%emt 0:01:54]} a6 {[%emt 0:00:00]} 4. d4 {[%emt 0:00:22]} cxd4 {[%emt 0:00:00]} 5. Nxd4 {[%emt 0:00:04]} Qc7 {[%emt 0:00:10]} 6. Be2 {[%emt 0:05:06]} Nf6 {[%emt 0:00:00]} 7. O-O {[%emt 0:00:00]} d6 {[%emt 0:04:40]} 8. a4 {[%emt 0:00:53]} b6 {[%emt 0:00:29]} 9. f4 {[%emt 0:06:10]} Bb7 {[%emt 0:01:21]} 10. Bf3 {[%emt 0:00:19]} Nbd7 {[%emt 0:00:40]} 11. Kh1 {[%emt 0:00:57]} e5 {[%emt 0:09:11]} 12. Nf5 {[%emt 0:04:30]} Rc8 {[%emt 0:12:31]} 13. Qe1 {[%emt 0:21:50]} g6 {[%emt 0:01:51]} 14. Ne3 {[%emt 0:04:56]} exf4 {[%emt 0:07:29]} 15. Ned5 {[%emt 0:07:24]} Bxd5 {[%emt 0:04:02]} 16. exd5+ {[%emt 0:01:03]} Ne5 {[%emt 0:00:10]} 17. Bxf4 {[%emt 0:00:22]} Nfd7 {[%emt 0:02:19]} 18. Be2 {[%emt 0:09:24]} Ra8 {[%emt 0:00:20]} 19. Qd2 {[%emt 0:03:46]} Bg7 {[%emt 0:00:49]} 20. Bh6 {[%emt 0:00:11]} O-O {[%emt 0:00:35]} 21. Bxg7 {[%emt 0:01:08]} Kxg7 {[%emt 0:00:02]} 22. Ne4 {[%emt 0:00:19]} f6 {[%emt 0:13:03]} 23. Ra3 {[%emt 0:04:21]} Nc5 {[%emt 0:01:22]} 24. Nf2 {[%emt 0:00:44]} a5 {[%emt 0:00:34]} 25. Bb5 {[%emt 0:01:28]} f5 {[%emt 0:04:28]} 26. Nh3 {[%emt 0:03:22]} Qe7 {[%emt 0:06:22]} 27. Nf4 {[%emt 0:01:55]} Kg8 {[%emt 0:03:38]} 28. Qe1 {[%emt 0:03:37]} g5 {[%emt 0:03:06]} 29. Ne2 {[%emt 0:01:39]} f4 {[%emt 0:01:32]} 30. Nd4 {[%emt 0:03:19]} Qf7 {[%emt 0:00:22]} 31. Nf3 {[%emt 0:05:12]} Nxf3 {[%emt 0:00:32]} 32. Raxf3 {[%emt 0:00:45]} Qxd5 {[%emt 0:01:56]} 33. Qc3 {[%emt 0:00:51]} Qe5 {[%emt 0:01:00]} 34. Qd2 {[%emt 0:03:09]} Ne4 {[%emt 0:01:44]} 35. Qd1 {[%emt 0:00:09]} d5 {[%emt 0:08:55]} 36. Rd3 {[%emt 0:00:13]} Rad8 {[%emt 0:00:25]} 37. c3 {[%emt 0:00:30]} Rf6 {[%emt 0:01:00]} 38. Kg1 {[%emt 0:00:19]} Rh6 {[%emt 0:00:32]} 39. Qf3 {[%emt 0:01:10]} Qd6 {[%emt 0:02:22]} 40. Rd4 {[%emt 0:00:23]} Nf6 {[%emt 0:02:49]} 41. Re1 {[%emt 0:00:57]} Qc7 {[%emt 0:01:22]} 42. Re6 {[%emt 0:00:12]} Rd6 {[%emt 0:00:15]} 43. Re5 {[%emt 0:01:16]} Rg6 {[%emt 0:00:34]} 44. Qe2 {[%emt 0:00:30]} Kf8 {[%emt 0:00:31]} 45. h4 {[%emt 0:01:01]} h6 {[%emt 0:00:28]} 46. h5 {[%emt 0:00:19]} Rg8 {[%emt 0:00:10]} 47. Re6 {[%emt 0:00:36]} Rxe6 {[%emt 0:00:25]} 48. Qxe6 {[%emt 0:00:01]} Qe7 {[%emt 0:00:01]} 49. Qxb6 {[%emt 0:00:56]} Qe3+ {[%emt 0:03:40]} 50. Kf1 {[%emt 0:00:10]} Kg7 {[%emt 0:01:02]} 51. Qc7+ {[%emt 0:00:44]} Kh8 {[%emt 0:00:31]} 52. Bd7 {[%emt 0:00:42]} Qe7 {[%emt 0:00:00]} 53. Qc6 {[%emt 0:00:18]} Kg7 {[%emt 0:03:08]} 54. Rxd5 {[%emt 0:00:34]} Nxd5 {[%emt 0:00:09]} 55. Qxd5 {[%emt 0:00:01]} Rd8 {[%emt 0:00:30]} 56. Qd4+ {[%emt 0:00:39]} Qf6 {[%emt 0:00:02]} 57. Qa7 {[%emt 0:00:08]} Kh8 {[%emt 0:01:01]} 58. Bg4 {[%emt 0:00:55]} f3 {[%emt 0:00:51]} 59. gxf3 {[%emt 0:01:14]} Qe5 {[%emt 0:00:56]} 60. Qf2 {[%emt 0:00:38]} Rd1+ {[%emt 0:00:31]} 61. Kg2 {[%emt 0:00:02]} Qf4 {[%emt 0:00:49]} 62. Qc5 {[%emt 0:00:17]} Qd2+ {[%emt 0:00:31]} 63. Qf2 {[%emt 0:00:01]} Qc1 {[%emt 0:00:30]} 64. f4 {[%emt 0:00:35]} Rd2 {[%emt 0:00:09]} 65. Be2 {[%emt 0:00:01]} Qxb2 {[%emt 0:00:12]} 66. Kf1 {[%emt 0:00:03]} Qb1+ {[%emt 0:00:33]} 67. Qe1 {[%emt 0:00:17]} Qxe1+ {[%emt 0:00:36]} 68. Kxe1 {[%emt 0:00:01]} Rd8 {[%emt 0:00:45]} 69. fxg5 {[%emt 0:00:17]} hxg5 {[%emt 0:00:05]} 70. Kf2 {[%emt 0:00:31]} Kg7 {[%emt 0:00:05]} 71. Ke3 {[%emt 0:00:12]} Kf6 {[%emt 0:00:13]} 72. c4 {[%emt 0:01:30]} Ke5 {[%emt 0:00:06]} 73. Bf3 {[%emt 0:00:18]} Rc8 {[%emt 0:00:15]} 74. Kd3 {[%emt 0:00:41]} Kf4 {[%emt 0:00:10]} 75. Bd5 {[%emt 0:01:38]} Ke5 {[%emt 0:00:30]} 76. Bf3 {[%emt 0:00:58]} Rf8 {[%emt 0:00:52]} 77. Bb7 {[%emt 0:00:43]} Rf4 {[%emt 0:02:02]} 78. Bg2 {[%emt 0:00:52]} Kd6 {[%emt 0:00:08]} 79. Bd5 {[%emt 0:00:23]} Kc5 {[%emt 0:00:09]} 80. Ke3 {[%emt 0:00:24]} Kb4 {[%emt 0:00:11]} 81. Bg8 {[%emt 0:00:42]} Rh4 {[%emt 0:00:07]} 82. Bf7 {[%emt 0:00:26]} Kxa4 {[%emt 0:00:03]} 0-1

[Event "Eurasia Open Cup 2019"]
[Site "Ekaterinburg"]
[Date "2019.08.06"]
[Round "6.22"]
[White "Mamatov, Melis"]
[Black "Kanter, Eduard"]
[Result "0-1"]
[ECO "B76"]
[WhiteElo "2269"]
[BlackElo "2384"]
[Annotator "NA"]
[PlyCount "85"]
[EventDate "2019.07.31"]
[EventType "swiss"]
[EventCountry "RUS"]
[SourceTitle "playchess.com"]
[Source "ChessBase"]
[SourceQuality "1"]
[TimeControl "5400+30"]

1. e4 {[%emt 0:00:00]} c5 {[%emt 0:00:00]} 2. Nf3 {[%emt 0:00:00]} d6 {[%emt 0:00:00]} 3. d4 {[%emt 0:00:05]} cxd4 {[%emt 0:00:00]} 4. Nxd4 {[%emt 0:00:00]} Nf6 {[%emt 0:00:00]} 5. Nc3 {[%emt 0:00:05]} g6 {[%emt 0:00:10]} 6. Be3 {[%emt 0:00:15]} Bg7 {[%emt 0:00:05]} 7. f3 {[%emt 0:00:20]} O-O {[%emt 0:00:11]} 8. Qd2 {[%emt 0:00:05]} Nc6 {[%emt 0:00:10]} 9. g4 {[%emt 0:00:35]} Be6 {[%emt 0:00:15]} 10. Nxe6 {[%emt 0:03:17]} fxe6 {[%emt 0:00:06]} 11. h4 {[%emt 0:11:33]} d5 {[%emt 0:03:56]} 12. g5 {[%emt 0:12:21]} d4 {[%emt 0:04:59]} 13. gxf6 {[%emt 0:01:11]} Bxf6 {[%emt 0:00:57]} 14. O-O-O {[%emt 0:16:20]} dxc3 {[%emt 0:03:22]} 15. Qxd8 {[%emt 0:01:20]} cxb2+ {[%emt 0:00:25]} 16. Kb1 {[%emt 0:00:10]} Raxd8 {[%emt 0:00:10]} 17. Bc4 {[%emt 0:00:55]} Rxd1+ {[%emt 0:29:01]} 18. Rxd1 {[%emt 0:00:05]} Bxh4 {[%emt 0:02:25]} 19. Bxe6+ {[%emt 0:01:11]} Kg7 {[%emt 0:01:00]} 20. f4 {[%emt 0:01:26]} Bg3 {[%emt 0:04:21]} 21. f5 {[%emt 0:03:12]} Be5 {[%emt 0:01:21]} 22. Rh1 {[%emt 0:02:26]} h5 {[%emt 0:06:06]} 23. Rg1 {[%emt 0:03:26]} Rf6 {[%emt 0:02:17]} 24. Bg5 {[%emt 0:10:57]} Rxe6 {[%emt 0:00:10]} 25. fxe6 {[%emt 0:00:00]} Nd4 {[%emt 0:24:04]} 26. Bxe7 {[%emt 0:04:14]} Nxe6 {[%emt 0:00:04]} 27. Rf1 {[%emt 0:10:59]} g5 {[%emt 0:03:57]} 28. Rf5 {[%emt 0:00:19]} Bf4 {[%emt 0:00:04]} 29. Bf6+ {[%emt 0:04:10]} Kh7 {[%emt 0:02:40]} 30. Be5 {[%emt 0:03:20]} Ng7 {[%emt 0:03:11]} 31. Rxf4 {[%emt 0:03:18]} gxf4 {[%emt 0:00:04]} 32. Bxf4 {[%emt 0:00:04]} Ne6 {[%emt 0:01:09]} 33. Be3 {[%emt 0:00:59]} a6 {[%emt 0:00:07]} 34. Kxb2 {[%emt 0:00:21]} h4 {[%emt 0:01:44]} 35. Kc3 {[%emt 0:04:03]} h3 {[%emt 0:00:10]} 36. Bg1 {[%emt 0:00:03]} Kg6 {[%emt 0:02:28]} 37. Kd3 {[%emt 0:01:52]} Kg5 {[%emt 0:00:55]} 38. Bh2 {[%emt 0:00:47]} Kg4 {[%emt 0:02:18]} 39. Kc4 {[%emt 0:01:38]} Kf3 {[%emt 0:00:50]} 40. Kd5 {[%emt 0:00:00]} Kg2 {[%emt 0:00:13]} 41. Bd6 {[%emt 0:01:32]} Ng7 {[%emt 0:00:10]} 42. c4 {[%emt 0:00:51]} Nh5 {[%emt 0:00:15]} 43. Kd4 {[%emt 0:00:32]} 0-1

[Event "Eurasia Open Cup 2019"]
[Site "Ekaterinburg"]
[Date "2019.08.06"]
[Round "6.23"]
[White "Sivuk, Vitaly"]
[Black "Isaev, Anton"]
[Result "1/2-1/2"]
[ECO "D12"]
[WhiteElo "2546"]
[BlackElo "2191"]
[Annotator "ChessBase"]
[PlyCount "162"]
[EventDate "2019.07.31"]
[EventType "swiss"]
[EventCountry "RUS"]
[SourceTitle "playchess.com"]
[Source "ChessBase"]
[SourceQuality "1"]
[TimeControl "5400+30"]

1. d4 {[%emt 0:00:00]} Nf6 {[%emt 0:00:00]} 2. c4 {[%emt 0:00:00]} c6 {[%emt 0:00:00]} 3. Nf3 {[%emt 0:00:00]} d5 {[%emt 0:00:00]} 4. e3 {[%emt 0:00:04]} Bf5 {[%emt 0:00:06]} 5. Nc3 {[%emt 0:00:00]} e6 {[%emt 0:00:03]} 6. Nh4 {[%emt 0:00:00]} Bg6 {[%emt 0:00:05]} 7. Nxg6 {[%emt 0:00:08]} hxg6 {[%emt 0:00:02]} 8. Bd3 {[%emt 0:00:13]} Nbd7 {[%emt 0:00:34]} 9. O-O {[%emt 0:00:19]} Bd6 {[%emt 0:00:35]} 10. h3 {[%emt 0:00:04]} O-O {[%emt 0:00:00]} 11. Qc2 {[%emt 0:00:36]} Rc8 {[%emt 0:01:57]} 12. c5 {[%emt 0:02:54]} Bc7 {[%emt 0:02:02]} 13. f4 {[%emt 0:00:16]} Ne8 {[%emt 0:04:07]} 14. b4 {[%emt 0:08:52]} f5 {[%emt 0:03:54]} 15. g4 {[%emt 0:03:43]} Qh4 {[%emt 0:05:45]} 16. Qg2 {[%emt 0:01:45]} Kf7 {[%emt 0:08:28]} 17. Bd2 {[%emt 0:04:43]} Rh8 {[%emt 0:00:18]} 18. g5 {[%emt 0:02:21]} Qxh3 {[%emt 0:01:04]} 19. Qxh3 {[%emt 0:00:38]} Rxh3 {[%emt 0:00:06]} 20. Kg2 {[%emt 0:00:09]} Rh4 {[%emt 0:01:00]} 21. Be2 {[%emt 0:03:03]} a5 {[%emt 0:09:39]} 22. a3 {[%emt 0:03:35]} b5 {[%emt 0:02:27]} 23. Rfb1 {[%emt 0:02:52]} a4 {[%emt 0:00:52]} 24. Nxb5 {[%emt 0:00:17]} cxb5 {[%emt 0:00:19]} 25. Bxb5 {[%emt 0:00:05]} Ke7 {[%emt 0:01:04]} 26. Bxa4 {[%emt 0:00:42]} Bb8 {[%emt 0:00:54]} 27. Bd1 {[%emt 0:03:05]} Nc7 {[%emt 0:01:32]} 28. Be1 {[%emt 0:01:19]} Rh7 {[%emt 0:00:18]} 29. Be2 {[%emt 0:01:26]} e5 {[%emt 0:04:06]} 30. dxe5 {[%emt 0:02:22]} d4 {[%emt 0:02:57]} 31. exd4 {[%emt 0:02:06]} Ne6 {[%emt 0:00:07]} 32. Bg3 {[%emt 0:00:41]} Nxd4 {[%emt 0:00:21]} 33. Ba6 {[%emt 0:00:49]} Rc6 {[%emt 0:02:14]} 34. Bd3 {[%emt 0:00:32]} Ba7 {[%emt 0:00:11]} 35. Rd1 {[%emt 0:08:46]} Bxc5 {[%emt 0:16:49]} 36. bxc5 {[%emt 0:00:00]} Nxc5 {[%emt 0:00:03]} 37. Ra2 {[%emt 0:00:55]} Na4 {[%emt 0:01:27]} 38. Rb1 {[%emt 0:04:08]} Rc3 {[%emt 0:02:04]} 39. Rb7+ {[%emt 0:02:25]} Ke6 {[%emt 0:01:30]} 40. Rd2 {[%emt 0:03:55]} Nc5 {[%emt 0:01:38]} 41. Rb6+ {[%emt 0:00:00]} Ke7 {[%emt 0:01:17]} 42. Bb1 {[%emt 0:02:20]} Nf3 {[%emt 0:04:18]} 43. Rc2 {[%emt 0:06:18]} Rh2+ {[%emt 0:00:00]} 44. Bxh2 {[%emt 0:00:06]} Ne1+ {[%emt 0:00:00]} 45. Kh1 {[%emt 0:09:15]} Nxc2 {[%emt 0:00:06]} 46. Bg1 {[%emt 0:00:23]} Ne4 {[%emt 0:04:05]} 47. Rxg6 {[%emt 0:03:33]} Ne1 {[%emt 0:04:03]} 48. Bxe4 {[%emt 0:06:46]} Rh3+ {[%emt 0:00:55]} 49. Bh2 {[%emt 0:00:00]} fxe4 {[%emt 0:00:03]} 50. Rxg7+ {[%emt 0:02:17]} Ke6 {[%emt 0:04:54]} 51. g6 {[%emt 0:00:16]} Rf3 {[%emt 0:01:05]} 52. f5+ {[%emt 0:07:08]} Rxf5 {[%emt 0:00:39]} 53. Rf7 {[%emt 0:00:08]} Rxf7 {[%emt 0:01:07]} 54. gxf7 {[%emt 0:00:35]} Kxf7 {[%emt 0:00:02]} 55. a4 {[%emt 0:00:28]} Nc2 {[%emt 0:05:57]} 56. a5 {[%emt 0:00:09]} Nb4 {[%emt 0:00:04]} 57. Kg2 {[%emt 0:01:09]} Ke6 {[%emt 0:00:26]} 58. Kf2 {[%emt 0:00:00]} Kd5 {[%emt 0:06:17]} 59. Ke2 {[%emt 0:01:38]} Na6 {[%emt 0:01:45]} 60. Bf4 {[%emt 0:02:44]} Nb4 {[%emt 0:00:35]} 61. Bg3 {[%emt 0:00:10]} Na6 {[%emt 0:01:10]} 62. Kd2 {[%emt 0:00:53]} Nb4 {[%emt 0:00:22]} 63. Kc3 {[%emt 0:00:31]} Na6 {[%emt 0:00:52]} 64. Kc2 {[%emt 0:02:22]} Nc5 {[%emt 0:00:40]} 65. Kc3 {[%emt 0:00:36]} Na6 {[%emt 0:00:00]} 66. Kb3 {[%emt 0:00:24]} Nc5+ {[%emt 0:00:55]} 67. Kb4 {[%emt 0:01:09]} e3 {[%emt 0:00:04]} 68. Kb5 {[%emt 0:00:54]} e2 {[%emt 0:00:12]} 69. Bh4 {[%emt 0:00:36]} Ne6 {[%emt 0:00:36]} 70. Kb6 {[%emt 0:00:35]} Nc5 {[%emt 0:00:34]} 71. Bg3 {[%emt 0:00:40]} Nd7+ {[%emt 0:00:33]} 72. Kc7 {[%emt 0:00:52]} Nxe5 {[%emt 0:00:45]} 73. a6 {[%emt 0:00:12]} Nc6 {[%emt 0:00:08]} 74. Kb6 {[%emt 0:01:15]} Ne7 {[%emt 0:00:07]} 75. Kb7 {[%emt 0:00:14]} Nc6 {[%emt 0:00:11]} 76. Bf2 {[%emt 0:00:16]} Na5+ {[%emt 0:00:17]} 77. Kb6 {[%emt 0:00:22]} Nc6 {[%emt 0:00:18]} 78. Kc7 {[%emt 0:00:11]} Na7 {[%emt 0:00:07]} 79. Kb6 {[%emt 0:01:09]} Nc6 {[%emt 0:00:12]} 80. Bg3 {[%emt 0:00:23]} Ne7 {[%emt 0:00:08]} 81. Kc7 {[%emt 0:01:09]} Nc6 {[%emt 0:00:15]} 1/2-1/2

[Event "Eurasia Open Cup 2019"]
[Site "Ekaterinburg"]
[Date "2019.08.06"]
[Round "6.24"]
[White "Bivol, Alina"]
[Black "Safin, Robert"]
[Result "1-0"]
[ECO "B40"]
[WhiteElo "2391"]
[BlackElo "2188"]
[Annotator "NA"]
[PlyCount "119"]
[EventDate "2019.07.31"]
[EventType "swiss"]
[EventCountry "RUS"]
[SourceTitle "playchess.com"]
[Source "ChessBase"]
[SourceQuality "1"]
[TimeControl "5400+30"]

1. e4 {[%emt 0:00:00]} c5 {[%emt 0:00:00]} 2. Nf3 {[%emt 0:00:00]} e6 {[%emt 0:00:00]} 3. d4 {[%emt 0:00:35]} cxd4 {[%emt 0:00:03]} 4. Nxd4 {[%emt 0:00:05]} Nf6 {[%emt 0:00:00]} 5. Bd3 {[%emt 0:06:45]} e5 {[%emt 0:04:46]} 6. Nf3 {[%emt 0:01:38]} Be7 {[%emt 0:16:30]} 7. c4 {[%emt 0:00:15]} Nc6 {[%emt 0:00:00]} 8. Nc3 {[%emt 0:01:30]} O-O {[%emt 0:07:18]} 9. O-O {[%emt 0:02:22]} h6 {[%emt 0:00:07]} 10. h3 {[%emt 0:05:52]} Bc5 {[%emt 0:02:51]} 11. Nd5 {[%emt 0:02:46]} d6 {[%emt 0:02:13]} 12. Bd2 {[%emt 0:01:32]} Nxd5 {[%emt 0:06:27]} 13. cxd5 {[%emt 0:00:45]} Nd4 {[%emt 0:00:00]} 14. b4 {[%emt 0:06:28]} Nxf3+ {[%emt 0:00:52]} 15. Qxf3 {[%emt 0:00:02]} Bd4 {[%emt 0:00:17]} 16. Rab1 {[%emt 0:00:00]} Bd7 {[%emt 0:01:56]} 17. Kh1 {[%emt 0:03:01]} Qh4 {[%emt 0:09:44]} 18. Be3 {[%emt 0:03:53]} Bxe3 {[%emt 0:01:02]} 19. Qxe3 {[%emt 0:00:01]} Qf4 {[%emt 0:01:59]} 20. Qxf4 {[%emt 0:07:50]} exf4 {[%emt 0:00:01]} 21. Rb3 {[%emt 0:00:37]} Rfc8 {[%emt 0:01:12]} 22. Ra3 {[%emt 0:03:11]} Rc7 {[%emt 0:03:09]} 23. Kh2 {[%emt 0:01:42]} b6 {[%emt 0:02:34]} 24. e5 {[%emt 0:05:40]} dxe5 {[%emt 0:22:41]} 25. d6 {[%emt 0:01:58]} Rcc8 {[%emt 0:00:01]} 26. Be4 {[%emt 0:00:33]} Rab8 {[%emt 0:00:28]} 27. Rxa7 {[%emt 0:00:14]} Rd8 {[%emt 0:00:01]} 28. Rd1 {[%emt 0:00:35]} b5 {[%emt 0:00:56]} 29. Bd5 {[%emt 0:05:52]} Kf8 {[%emt 0:01:13]} 30. Bb3 {[%emt 0:03:00]} Rb6 {[%emt 0:04:29]} 31. f3 {[%emt 0:09:20]} f6 {[%emt 0:04:18]} 32. Rc7 {[%emt 0:09:08]} Be8 {[%emt 0:00:57]} 33. d7 {[%emt 0:00:14]} Bg6 {[%emt 0:00:04]} 34. g3 {[%emt 0:11:11]} fxg3+ {[%emt 0:00:36]} 35. Kxg3 {[%emt 0:00:02]} Ke7 {[%emt 0:00:54]} 36. f4 {[%emt 0:02:59]} Bf5 {[%emt 0:02:03]} 37. fxe5 {[%emt 0:00:44]} Rxd7 {[%emt 0:01:52]} 38. Rdxd7+ {[%emt 0:01:19]} Bxd7 {[%emt 0:00:04]} 39. e6 {[%emt 0:00:00]} Rxe6 {[%emt 0:00:00]} 40. Bxe6 {[%emt 0:00:00]} Kxe6 {[%emt 0:00:00]} 41. h4 {[%emt 0:01:13]} Kd6 {[%emt 0:00:57]} 42. Ra7 {[%emt 0:00:00]} g6 {[%emt 0:01:32]} 43. Kf3 {[%emt 0:00:24]} g5 {[%emt 0:01:09]} 44. hxg5 {[%emt 0:01:31]} hxg5 {[%emt 0:00:12]} 45. Ra6+ {[%emt 0:01:41]} Ke5 {[%emt 0:00:46]} 46. Ra7 {[%emt 0:03:01]} Kd6 {[%emt 0:00:00]} 47. Ke4 {[%emt 0:00:00]} f5+ {[%emt 0:00:14]} 48. Kd4 {[%emt 0:00:00]} f4 {[%emt 0:01:34]} 49. Ra6+ {[%emt 0:00:18]} Ke7 {[%emt 0:01:46]} 50. Ke4 {[%emt 0:00:39]} Kf7 {[%emt 0:01:16]} 51. Rb6 {[%emt 0:00:01]} Bh3 {[%emt 0:01:22]} 52. Rxb5 {[%emt 0:00:38]} Kg6 {[%emt 0:00:37]} 53. Kf3 {[%emt 0:00:49]} Kh5 {[%emt 0:00:05]} 54. Rb8 {[%emt 0:00:28]} Bg4+ {[%emt 0:00:05]} 55. Kf2 {[%emt 0:00:17]} Be6 {[%emt 0:00:00]} 56. Rh8+ {[%emt 0:01:04]} Kg6 {[%emt 0:00:30]} 57. b5 {[%emt 0:00:39]} g4 {[%emt 0:00:06]} 58. Rd8 {[%emt 0:00:45]} Bf5 {[%emt 0:00:50]} 59. Rd4 {[%emt 0:00:22]} Kg5 {[%emt 0:00:08]} 60. Rd5 {[%emt 0:00:13]} 1-0

[Event "Eurasia Open Cup 2019"]
[Site "Ekaterinburg"]
[Date "2019.08.06"]
[Round "6.25"]
[White "Kotlyar, Kirill"]
[Black "Kyshtymov, Daniil"]
[Result "1-0"]
[ECO "B07"]
[WhiteElo "2387"]
[BlackElo "2176"]
[Annotator "NA"]
[PlyCount "99"]
[EventDate "2019.07.31"]
[EventType "swiss"]
[EventCountry "RUS"]
[SourceTitle "playchess.com"]
[Source "ChessBase"]
[SourceQuality "1"]
[TimeControl "5400+30"]

1. d4 {[%emt 0:00:00]} Nf6 {[%emt 0:00:00]} 2. g3 {[%emt 0:01:15]} g6 {[%emt 0:02:10]} 3. Bg2 {[%emt 0:00:07]} Bg7 {[%emt 0:03:26]} 4. e4 {[%emt 0:01:14]} d6 {[%emt 0:00:47]} 5. Nc3 {[%emt 0:00:07]} O-O {[%emt 0:00:30]} 6. Nge2 {[%emt 0:00:22]} Nbd7 {[%emt 0:04:35]} 7. O-O {[%emt 0:00:18]} c6 {[%emt 0:04:29]} 8. a4 {[%emt 0:01:46]} Qc7 {[%emt 0:06:52]} 9. h3 {[%emt 0:01:43]} e5 {[%emt 0:02:52]} 10. Be3 {[%emt 0:08:04]} Re8 {[%emt 0:07:09]} 11. g4 {[%emt 0:00:00]} exd4 {[%emt 0:26:42]} 12. Bxd4 {[%emt 0:00:29]} h5 {[%emt 0:16:09]} 13. g5 {[%emt 0:06:47]} Nh7 {[%emt 0:00:00]} 14. Bxg7 {[%emt 0:05:01]} Kxg7 {[%emt 0:00:00]} 15. Qd4+ {[%emt 0:00:13]} Kg8 {[%emt 0:00:00]} 16. f4 {[%emt 0:00:08]} Ndf8 {[%emt 0:06:55]} 17. Rad1 {[%emt 0:04:18]} Rd8 {[%emt 0:08:14]} 18. Rd2 {[%emt 0:03:07]} a6 {[%emt 0:02:12]} 19. b4 {[%emt 0:06:03]} b5 {[%emt 0:03:08]} 20. a5 {[%emt 0:00:26]} Bb7 {[%emt 0:01:34]} 21. Na2 {[%emt 0:09:03]} c5 {[%emt 0:00:32]} 22. Qc3 {[%emt 0:00:00]} Qe7 {[%emt 0:00:48]} 23. Qf3 {[%emt 0:04:01]} Rac8 {[%emt 0:00:31]} 24. h4 {[%emt 0:01:43]} Qe6 {[%emt 0:01:21]} 25. Nac3 {[%emt 0:05:48]} Qc4 {[%emt 0:00:28]} 26. bxc5 {[%emt 0:00:40]} dxc5 {[%emt 0:00:15]} 27. Nd5 {[%emt 0:00:37]} Bxd5 {[%emt 0:00:48]} 28. exd5 {[%emt 0:00:00]} Qb4 {[%emt 0:00:28]} 29. Qc3 {[%emt 0:03:17]} Qxc3 {[%emt 0:00:10]} 30. Nxc3 {[%emt 0:00:05]} c4 {[%emt 0:00:41]} 31. d6 {[%emt 0:00:46]} Ne6 {[%emt 0:00:42]} 32. Bb7 {[%emt 0:01:03]} Rc5 {[%emt 0:00:22]} 33. Bxa6 {[%emt 0:00:47]} b4 {[%emt 0:00:29]} 34. Ne4 {[%emt 0:00:19]} c3 {[%emt 0:00:38]} 35. Rd3 {[%emt 0:05:45]} Rxa5 {[%emt 0:00:39]} 36. Bc4 {[%emt 0:00:04]} Nc5 {[%emt 0:00:18]} 37. Rd5 {[%emt 0:03:25]} Nxe4 {[%emt 0:00:09]} 38. Rxa5 {[%emt 0:00:05]} Nd2 {[%emt 0:01:20]} 39. Rfa1 {[%emt 0:00:14]} Rxd6 {[%emt 0:00:05]} 40. Bd5 {[%emt 0:00:59]} Nf8 {[%emt 0:00:28]} 41. Rb5 {[%emt 0:00:40]} Rd8 {[%emt 0:00:32]} 42. Ra4 {[%emt 0:05:42]} b3 {[%emt 0:00:28]} 43. Bxb3 {[%emt 0:00:05]} Nxb3 {[%emt 0:00:28]} 44. Rxb3 {[%emt 0:00:04]} Rd1+ {[%emt 0:00:19]} 45. Kf2 {[%emt 0:00:25]} Rd2+ {[%emt 0:00:04]} 46. Ke3 {[%emt 0:00:04]} Rxc2 {[%emt 0:00:34]} 47. Ra8 {[%emt 0:00:08]} Rb2 {[%emt 0:01:02]} 48. Rxc3 {[%emt 0:00:06]} Kg7 {[%emt 0:00:34]} 49. Rcc8 {[%emt 0:00:36]} Rb3+ {[%emt 0:00:20]} 50. Kd2 {[%emt 0:00:00]} 1-0

[Event "Eurasia Open Cup 2019"]
[Site "Ekaterinburg"]
[Date "2019.08.06"]
[Round "6.26"]
[White "Tunik, Gennady"]
[Black "Kavyev, Ruslan"]
[Result "1/2-1/2"]
[ECO "D11"]
[WhiteElo "2371"]
[BlackElo "2167"]
[Annotator "NA"]
[PlyCount "80"]
[EventDate "2019.07.31"]
[EventType "swiss"]
[EventCountry "RUS"]
[SourceTitle "playchess.com"]
[Source "ChessBase"]
[SourceQuality "1"]
[TimeControl "5400+30"]

1. Nf3 {[%emt 0:00:00]} Nf6 {[%emt 0:00:00]} 2. c4 {[%emt 0:00:00]} c6 {[%emt 0:03:32]} 3. d4 {[%emt 0:00:00]} d5 {[%emt 0:00:05]} 4. Qc2 {[%emt 0:00:21]} g6 {[%emt 0:00:27]} 5. cxd5 {[%emt 0:00:25]} cxd5 {[%emt 0:02:55]} 6. Bf4 {[%emt 0:00:46]} Nc6 {[%emt 0:00:31]} 7. e3 {[%emt 0:00:02]} Bg7 {[%emt 0:00:40]} 8. h3 {[%emt 0:02:49]} O-O {[%emt 0:00:40]} 9. Be2 {[%emt 0:00:21]} Qb6 {[%emt 0:08:03]} 10. O-O {[%emt 0:02:24]} Bf5 {[%emt 0:01:11]} 11. Qb3 {[%emt 0:00:42]} Qxb3 {[%emt 0:03:35]} 12. axb3 {[%emt 0:00:00]} Rfc8 {[%emt 0:02:28]} 13. Nc3 {[%emt 0:00:40]} Nb4 {[%emt 0:08:44]} 14. Rfc1 {[%emt 0:03:21]} Nd3 {[%emt 0:09:20]} 15. Bxd3 {[%emt 0:00:18]} Bxd3 {[%emt 0:00:03]} 16. g4 {[%emt 0:03:25]} e6 {[%emt 0:02:49]} 17. Ne5 {[%emt 0:12:02]} Ba6 {[%emt 0:00:37]} 18. f3 {[%emt 0:04:28]} Bf8 {[%emt 0:06:34]} 19. Kf2 {[%emt 0:09:44]} Be7 {[%emt 0:05:10]} 20. Ke1 {[%emt 0:00:56]} Kf8 {[%emt 0:00:30]} 21. Kd2 {[%emt 0:00:12]} Ke8 {[%emt 0:00:20]} 22. Ra4 {[%emt 0:01:46]} Nd7 {[%emt 0:01:09]} 23. Nxd7 {[%emt 0:00:31]} Kxd7 {[%emt 0:02:10]} 24. Rca1 {[%emt 0:09:11]} Rc6 {[%emt 0:00:52]} 25. b4 {[%emt 0:03:17]} Rb6 {[%emt 0:00:13]} 26. b5 {[%emt 0:00:13]} Bxb5 {[%emt 0:00:05]} 27. Rxa7 {[%emt 0:00:05]} Rxa7 {[%emt 0:00:05]} 28. Rxa7 {[%emt 0:00:06]} Bc6 {[%emt 0:00:47]} 29. Kc2 {[%emt 0:00:41]} Ra6 {[%emt 0:00:00]} 30. Rxa6 {[%emt 0:00:05]} bxa6 {[%emt 0:00:00]} 31. Bg3 {[%emt 0:00:33]} Bb4 {[%emt 0:00:32]} 32. Na2 {[%emt 0:01:41]} Be7 {[%emt 0:00:22]} 33. Nc1 {[%emt 0:00:20]} Bb5 {[%emt 0:00:21]} 34. Nd3 {[%emt 0:00:12]} Bxd3+ {[%emt 0:00:19]} 35. Kxd3 {[%emt 0:00:34]} Kc6 {[%emt 0:00:06]} 36. b3 {[%emt 0:01:50]} Kb5 {[%emt 0:00:12]} 37. Be1 {[%emt 0:00:28]} Bd6 {[%emt 0:01:06]} 38. Kc2 {[%emt 0:00:57]} Be7 {[%emt 0:00:04]} 39. Kd3 {[%emt 0:00:00]} Bd6 {[%emt 0:00:03]} 40. Kc2 {[%emt 0:00:00]} Be7 {[%emt 0:00:01]} 1/2-1/2